Cogmind - Beta 17 @@@ ROGUE MODE // 2026.07.01 @ 00:12:43 Player: aperiodic Result: Destroyed by 2E-9GF(R) with Subdweller Laser Performance ------------- Evolutions (0) 0 Regions Visited (2) 400 Robots Destroyed (27) 135 Value Destroyed (729) 729 Prototype IDs (0) 0 Alien Tech Used (0) 0 Bonus (0) 0 TOTAL SCORE: 1264 Bonus ------- None Cogmind --------- Core Integrity 0/250 Matter 286/300 Energy 100/100 System Corruption 0% Temperature Cool (6) Movement Core (50) Location -10/Subcaves Parts ------- > --- POWER (1) -------- (None) > --- PROPULSION (2) --- Compact Wheel > --- UTILITY (2) ------ (None) > --- WEAPON (2) ------- (None) > --- INVENTORY (5) ---- Compact Wheel Subdweller Monowheel Hardened Light Armor Plating Scrap Shield Fragment (38) Peak State ------------ > --- POWER ------------ Subdweller Power Source > --- PROPULSION ------- Light Treads Compact Wheel > --- UTILITY ---------- Scrap Shield > --- WEAPON ----------- Light Assault Rifle Light Assault Rifle > --- INVENTORY -------- Compact Wheel Hardened Light Armor Plating Scrap Shield Fragment [Rating: 10] Favorites ----------- Power Ion Engine Engine Ion Engine Propulsion Compact Wheel Treads Light Treads Wheel Compact Wheel Utility Medium Storage Unit Device Seismic Detector Storage Medium Storage Unit Protection Hardened Light Armor Plating Weapon EM Pulse Gun Energy Gun EM Pulse Gun Ballistic Gun Light Assault Rifle Build | -11 -10 -10 ------- Run | Yrd Mat Sub Slots Evolved . | . . . Power . | . . . Propulsion . | . . . Utility . | . . . Weapon . | . . . Parts Attached 23 | 8 12 3 Power 3 | 1 1 1 Engine 3 | 1 1 1 Core . | . . . Reactor . | . . . Propulsion 7 | 2 5 . Treads 2 | . 2 . Leg . | . . . Wheel 5 | 2 3 . Hover . | . . . Flight . | . . . Utility 8 | 2 5 1 Device 1 | 1 . . Storage 2 | 1 1 . Processor . | . . . Hackware . | . . . Protection 5 | . 4 1 Artifact . | . . . Weapon 5 | 3 1 1 Energy Gun 2 | 2 . . Energy Cannon . | . . . Ballistic Gun 3 | 1 1 1 Ballistic Cannon . | . . . Launcher . | . . . Special Weapon . | . . . Impact Weapon . | . . . Slashing Weapon . | . . . Piercing Weapon . | . . . Special Melee Weapon . | . . . Unidentified Prototypes . | . . . Parts Lost 14 | . 6 8 Power 2 | . 1 1 Propulsion 2 | . . 2 Utility 5 | . 3 2 Weapon 5 | . 2 3 Highest Loss Streak 7 | . 2 7 To Critical Strikes . | . . . Average Backups 7 | 3 8 5 Power . | . . . Propulsion 3 | 2 3 2 Utility 1 | . 2 1 Weapon 1 | . 1 1 Tool/Special . | . . . Unused Backups 4 | 1 1 2 Power 1 | . 1 . Propulsion 2 | 1 . 1 Utility . | . . . Weapon 1 | . . 1 Tool/Special . | . . . Average Slot Usage (%) 93 | . 95 88 Engine 11 | . 11 12 Treads 4 | . 4 1 Wheel 23 | . 22 24 Device 5 | . 7 . Storage 13 | . 14 10 Protection 7 | . 5 12 Energy Gun 14 | . 18 . Ballistic Gun 12 | . 9 25 Peak Build Rating 10 | 7 9 10 Average Rating 7 | 5 7 8 On Entrance 5 | . 7 8 Avg Prop Armor Cover (%) 15 | . . 15 Naked Turns . | . . . Heaviest Build 26 | 15 26 25 Greatest Support 40 | 32 40 32 Greatest Overweight (x) 1 | . 1 1 Average Overweight (x) . | . . . Largest Inventory Capacity 10 | 8 10 10 Average Capacity 9 | 7 9 8 Most Carried 10 | 6 10 9 Average Carried 7 | 4 8 6 Final Capacity 10 | 8 10 5 Final Carried 6 | 6 6 4 Class Distribution -------------------- 100% | Mutant Dominant Class ---------------- Mutant | -10/Materials Mutant | -10/Subcaves Resources | -11 -10 -10 ----------- Run | Yrd Mat Sub Matter Collected 623 | 274 319 30 Remotely . | . . . Salvage Created 992 | 95 651 246 Parts 59 | 10 35 14 Haulers Intercepted 1 | . 1 . Recyclers Shooed . | . . . Parts Field Recycled . | . . . Retrieved Matter . | . . . Parts Self-Destructed 10 | . . 10 Prevented . | . . . Parts Restored . | . . . Kills | -11 -10 -10 ------- Run | Yrd Mat Sub Combat Hostiles Destroyed 19 | . 14 5 Guns 18 | . 13 5 AOE 1 | . 1 . Classes Destroyed 8 | 2 5 1 Tunneler 2 | 2 . . Hauler 1 | . 1 . Recycler 1 | 1 . . Operator 1 | . 1 . Watcher 3 | . 3 . Swarmer 3 | . 3 . Grunt 11 | . 11 . Subdweller 5 | . . 5 Best Kill Streak 4 | 3 4 4 Combat Bots Only 4 | . 4 4 Max Kills in Single Turn 1 | 1 1 1 Gunslinging . | . . . Exploded 1 | . 1 . Melee . | . . . Uniques/NPCs Destroyed . | . . . Combat | -11 -10 -10 -------- Run | Yrd Mat Sub Hostile Shots Fired 138 | . 86 52 Missed 38 | . 22 16 Hits 100 | . 64 36 Projectile 100 | . 64 36 Critical Strikes 4 | . 3 1 Damage Taken 1711 | . 868 843 Core 267 | . 114 153 Absorbed by Shields . | . . . Core Remaining (%) 100 | 100 . . Volleys Fired 93 | 4 69 20 Largest 2 | 2 2 2 Hottest 80 | 80 80 40 Shots Fired 176 | 8 130 38 Gun 176 | 8 130 38 Cannon . | . . . Launcher . | . . . Special . | . . . Kinetic 118 | . 80 38 Thermal . | . . . Explosive . | . . . Electromagnetic 58 | 8 50 . Robot Hit Streak 20 | 4 12 20 Robot Miss Streak 3 | 1 3 1 Penetration Max . | . . . Secondary Targets 2 | . 1 1 Max Gunslinging Chain 1 | . 1 1 Shots Hit Robots 129 | 6 89 34 Core Hits 53 | 4 35 14 Critical Kills . | . . . Critical Parts Destroyed . | . . . Critical Strikes 2 | . 2 . Corrupt 2 | . 2 . Melee Attacks . | . . . Impact . | . . . Slashing . | . . . Piercing . | . . . Sneak Attacks . | . . . Combat Hostiles . | . . . Follow-up Attacks . | . . . Damage Inflicted 1506 | 88 1136 282 Guns 1425 | 67 1076 282 Cannons . | . . . Explosions 70 | 21 49 . Melee . | . . . Ramming 11 | . 11 . Kinetic 861 | . 579 282 Thermal 70 | 21 49 . Explosive . | . . . Electromagnetic 564 | 67 497 . Impact . | . . . Slashing . | . . . Piercing . | . . . Highest Corruption . | . . . Average Corruption . | . . . Corruption Purged . | . . . Corruption Blocked . | . . . Overload Shots . | . . . Overflow Damage . | . . . Projectiles . | . . . Explosions . | . . . Melee . | . . . Knockbacks . | . . . Impact . | . . . Kinetic . | . . . Secondary . | . . . Self-Inflicted Damage 5 | . 5 . Shots . | . . . Rammed 1 | . 1 . Targets Rammed 1 | . 1 . Kicked . | . . . Crushed . | . . . Highest Temperature 180 | 18 180 . Average Temperature 45 | 12 48 . Received Heat Transfer 669 | . 474 195 Siege Activations . | . . . Martial Activations . | . . . Shielding Activations . | . . . Robots Disrupted . | . . . Combat Hostiles . | . . . Robots Corrupted . | . . . Combat Hostiles . | . . . Parts Fried 1 | . 1 . Impact Corruptions . | . . . Robots Melted . | . . . Combat Hostiles . | . . . Parts Melted . | . . . Heat Transferred 150 | 50 100 . Parts Sabotaged . | . . . Parts Stolen . | . . . Parts Stripped . | . . . Power Chain Reactions 2 | 1 1 . Alert | -11 -10 -10 ------- Run | Yrd Mat Sub Maximum Alert Level 1 | . 1 . Low Security (%) 87 | 100 86 . Level 1 12 | . 13 . Level 2 . | . . . Level 3 . | . . . Level 4 . | . . . Level 5 . | . . . High Security . | . . . Max Security . | . . . Peak Influence 237 | 5 237 . Initial . | . . . Average 57 | 1 63 . Influence Increases 486 | 15 471 . Destroy 0b10 Robot/C 280 | . 280 . Destroy 0b10 Robot/NC 40 | 15 25 . Destroy Leader 68 | . 68 . Successful Hack 35 | . 35 . Destroy Structure 3 | . 3 . Lose Combat Pursuer 60 | . 60 . Influence Decreases 486 | 15 294 177 Entered New Map 85 | . . 85 Time Decay 331 | 15 234 82 Lost Part 70 | . 60 10 Squads Dispatched 2 | . 2 . Investigation 1 | . 1 . Extermination . | . . . Reinforcement 1 | . 1 . Assault . | . . . Garrison . | . . . Intercept . | . . . Searches Triggered . | . . . Construction Impeded . | . . . Haulers Reinforced . | . . . Active Scanning Responses . | . . . Cargo Convoy Interrupts . | . . . Stealth | -11 -10 -10 --------- Run | Yrd Mat Sub Distress Signals . | . . . Communications Jammed . | . . . Distress Signals . | . . . Times Spotted 32 | . 21 11 Peak Tracking Total 8 | . 7 8 Tactical Retreats 2 | . 2 . Traps | -11 -10 -10 ------- Run | Yrd Mat Sub Traps Triggered 4 | . 4 . Indirectly . | . . . Trap Hack Attempts . | . . . Triggered . | . . . Disarmed . | . . . Reprogrammed . | . . . Reused . | . . . Traps Extracted . | . . . Installed . | . . . Triggered . | . . . Machines | -11 -10 -10 ---------- Run | Yrd Mat Sub Machines Disabled . | . . . Max in Single Turn . | . . . Machines Repaired . | . . . Machines Dismantled . | . . . Machines Sabotaged . | . . . Overloaded Fab Kills . | . . . Hacking | -11 -10 -10 --------- Run | Yrd Mat Sub Machines Accessed 7 | . 7 . Terminals 7 | . 7 . Fabricators . | . . . Repair Stations . | . . . Recycling Units . | . . . Scanalyzers . | . . . Garrison Access . | . . . Total Hacks 13 | . 13 . Successful 9 | . 9 . Failed 4 | . 4 . Catastrophic 1 | . 1 . Database Lockouts . | . . . Manual 8 | . 8 . Terminals 13 | . 13 . Fabricators . | . . . Repair Stations . | . . . Recycling Units . | . . . Scanalyzers . | . . . Garrison Access . | . . . Terminal Hacks 2 | . 2 . Locate Traps 1 | . 1 . Hauler Manifests 1 | . 1 . Fabricator Hacks . | . . . Repair Station Hacks . | . . . Recycling Unit Hacks . | . . . Scanalyzer . | . . . Garrison Access Hacks . | . . . Unauthorized Hacks 7 | . 7 . Terminals 7 | . 7 . Botnet 1 | . 1 . Operators 1 | . 1 . Skim 5 | . 5 . Fabricators . | . . . Repair Stations . | . . . Recycling Units . | . . . Scanalyzers . | . . . Garrison Access . | . . . Data Cores Recovered . | . . . Used . | . . . Hacking Detections 6 | . 6 . Full Trace Events . | . . . Feedback Events . | . . . Feedback Blocked . | . . . Robot Schematics Acquired . | . . . Robots Built . | . . . Authchips . | . . . Time . | . . . Total Robot Build Rating . | . . . Part Schematics Acquired . | . . . Parts Built . | . . . Authchips . | . . . Time . | . . . Total Part Build Rating . | . . . Part Studies Acquired . | . . . Parts Repaired . | . . . Time . | . . . Parts Recycled . | . . . Recycled Matter . | . . . Retrieved Matter . | . . . Retrieved Components . | . . . Parts Scanalyzed . | . . . Part Schematics Acquired . | . . . Parts Damaged . | . . . Bothacking | -11 -10 -10 ------------ Run | Yrd Mat Sub Used RIF Installer . | . . . Robots Hacked . | . . . Non-combat . | . . . Combat . | . . . Robot Hacks Applied . | . . . Relay Couplers Released . | . . . Fabnet Peak Effective % . | . . . Robots Rewired . | . . . Allies Hacked . | . . . Hacks Repelled . | . . . Allies | -11 -10 -10 -------- Run | Yrd Mat Sub Total Allies . | . . . Largest Group . | . . . Highest-Rated Group . | . . . Highest-Rated Ally . | . . . Total Orders . | . . . Ally Attacks . | . . . Total Damage . | . . . Kills . | . . . Allies Corrupted . | . . . Allies Melted . | . . . Intel | -11 -10 -10 ------- Run | Yrd Mat Sub Active Infowar (turns) 553 | 25 528 . Seismic 553 | 25 528 . Robot Analysis Total . | . . . Derelict Logs Recovered . | . . . Drone Launches . | . . . Drone Recoveries . | . . . Exploration | -11 -10 -10 ------------- Run | Yrd Mat Sub Turns Passed 1461 | 111 1053 297 Spaces Moved 998 | 81 773 144 Core 48 | 2 . 46 Treads 47 | . 44 3 Legs . | . . . Wheels 903 | 79 729 95 Hover . | . . . Flight . | . . . Fastest Speed 50 | 50 90 50 Average Speed 100 | 98 103 86 Slowest Speed 240 | 100 160 240 Overloaded Moves . | . . . Propulsion Burnouts . | . . . Robots Hopped . | . . . Potential Cave-ins . | . . . Cave-ins Triggered . | . . . Exploration Rate (%) 37 | 3 98 11 Regions Visited 2 Branch Regions 1 Pre-discovered Areas 2 | . 2 . Known Exits Taken . | . . . Unknown Exits Taken 2 | 1 1 . Scrap Searched . | . . . Spaces Dug . | . . . Terrain Destroyed 7 | 4 3 . Melee . | . . . Projectile . | . . . AOE 7 | 4 3 . Terrain Rammed . | . . . Walls Destroyed . | . . . Machines Disabled . | . . . Actions | -11 -10 -10 --------- Run | Yrd Mat Sub Total 1282 | 100 896 286 Wait 138 | . 26 112 Move 996 | 80 772 144 Hop . | . . . Pick Up 20 | 7 9 4 Fast Attach 11 | 7 3 1 Attach 11 | . 8 3 Detach . | . . . Swap 7 | 1 6 . Drop 5 | 1 2 2 Fire 93 | 4 69 20 Melee . | . . . Ram 1 | . 1 . Kick . | . . . Crush . | . . . Escape Stasis . | . . . Rewire . | . . . Trap . | . . . Miscellaneous . | . . . Route ------- -11/Scrapyard -10/Materials (discovered 6 exits: *Mat x3 / [*Min x2] / [*Sub]) -10/Subcaves History --------- Turn | Location | Event 4 | -11/Scrapyard | Discovered new exit (range 16) 112 | -11/Scrapyard | Entered Materials 289 | -10/Materials | Discovered new exit (range 15) 311 | -10/Materials | Build established: Mutant 397 | -10/Materials | Discovered new exit (range 16) 635 | -10/Materials | Discovered new exit (range 14) 637 | -10/Materials | Discovered new exit (range 16) 729 | -10/Materials | Discovered new exit (range 7) 869 | -10/Materials | Identified exit to Materials 912 | -10/Materials | Derelicts attacked the area 923 | -10/Materials | Learned location of 2 exits from Materials 968 | -10/Materials | Learned Storage security intel 1005 | -10/Materials | Loaded intel: 2 recycling unit locations 1108 | -10/Materials | Learned location of Storage (-8) 1165 | -10/Materials | Entered Subcaves 1166 | -10/Subcaves | Approached by a straggling Scientist 1360 | -10/Subcaves | Ambushed by swarm of Subdwellers 1386 | -10/Subcaves | Core integrity fell below 50% 1407 | -10/Subcaves | Lost 4 allies 1440 | -10/Subcaves | Core integrity fell below 20% 1462 | -10/Subcaves | Destroyed by 2E-9GF(R) with Subdweller Laser Last Messages --------------- 01417_ SE-F5P(O) collects matter. 01417_ Acquired Sub. Power Source. 01418_ Subatomizers dissect the Sub. Optics. 01421_ Acquired Sub. Monowheel. 01426_ SA-TA2(R) affixes Scrap Shield Fragment to Scrap Shield. 01427_ Scrap Shield destroyed. 01429_ Lgt. Treads destroyed. 01430_ Subatomizers dissect the Disposable Heat Sink. 01433_ Lgt. Assault Rifle destroyed. 01435_ CD-PH1(R) destroyed. 01435_ SA-TA2(R) affixes Scrap Shield Fragment to Scrap Shield. 01437_ Lgt. Assault Rifle destroyed. 01438_ Dropped Sub. Power Source. 01440_ Subatomizers dissect the Disposable Heat Sink. 01444_ Acquired 14 matter. 01444_ Acquired 6 matter. Map ----- +----------------------------------------------------+ | ?????????????????##=##?## ?????????????????????? | | ??????????????????#%!#?# #?????????????????????? | | ?????????????????##&*#?# ##????????????????????? | | ?????????????????# !!### "##???????????????????? | | ?????????????????## * ## """#???????????????????? | | ?????????????????##!| ""#???????????????????? | | ?????????????????# = = "#???????????????????? | | ?????????????????## ### ####????????????????? | | ??????????????????# " ##?## ##???????????????? | | ??????????????????# ##??# ##??????????????? | | ??????????????????# #???# ##?????????????? | | ??????????????????# ???# ##????????????? | | ?????????????????? #???## ### % #????????????? | | ?????????????????## ???###### #????????????? | | ?????????????????? ## # # #????????????? | | ??????????????????# % % #????????????? | | ?????????????????? ## ## #????????????? | | ??????????????????% ##????## ###????????????? | | ?????????????????? ###??????# ##??????????????? | | ?????????????????? ?????????# #???????????????? | | ????????????????????????###### #???????????????? | | ???????????????????????## ### #???????????????? | | ???????????????????????# ## #???????????????? | | ???????????????????????# RR ##??????????????? | | ???????????????????????# ##?????????????? | | ??????????????????????## @ ##????????????? | | ?????????????????????## #????????????? | | ??????????????????#### ######????????????? | | ?????????????????## #?????????????????? | | ????????????????## ### ##?????????????????? | | ????????????????# ## #?###??????????????????? | | ????????????????# ##### #??????????????????????? | | ????????????????####???####??????????????????????? | | ?????????????????????????????????????????????????? | | ?????????????????????????????????????????????????? | | ?????????????????????????????????????????????????? | | ?????????????????????????????????????????????????? | | ?????????????????????????????????????????????????? | | ?????????????????????????????????????????????????? | | ?????????????????????????????????????????????????? | | ?????????????????????????????????????????????????? | | ?????????????????????????????????????????????????? | | ?????????????????????????????????????????????????? | | ?????????????????????????????????????????????????? | | ?????????????????????????????????????????????????? | | ?????????????????????????????????????????????????? | | ?????????????????????????????????????????????????? | | | | | | | +----------------------------------------------------+ Best States ------------- Heat Dissipation 25 Energy Generation 15 Energy Capacity 250 Matter Stores 300 Matter Capacity 300 Sight Range 16 Terrain Scan Density 10 Armor Coverage 800 Evasion (%) 50 Recoil Reduction 2 Item Schematics ----------------- None Robot Schematics ------------------ None Fabricated ------------ Nothing Repaired ---------- Nothing Studied --------- None Alien Tech Used ----------------- None Achievements -------------- DATA ERROR: Steam Global Achievement% For Emergencies Only Organ Harvest Challenges ------------ None Game ------ Seed MetaMagneticSpear Manual? 0 Play Time 00:27:31 Cumulative 682.9 hours Start 2026.06.30 @ 23:42:55 End 2026.07.01 @ 00:12:43 Sessions 1 Manual Loads 0 Difficulty Rogue Special Mode None Game No. 229 Rogue 225 Adventurer 4 Explorer 0 Win Type - Total 21 Types 9/2/6/0/0/0/2/2/0/0 Lore% 54 Gallery% 68 Achievement% 42 Wizard Run 0 Options --------- Layout 1 ASCII 1 Keyboard 0 Movement Arrows Keybinds 0 Fullscreen 1 Font 24/Smallcaps Map View 50x35 Zoom Use 0% Tactical HUD 1 Map Filters NONE Filters NONE Steam 1 RUN: 61fc4f78-b19c-4446-b06d-c7e906eab4b4